fUST/lending_fUST_20250926
["ID","MTS","AMOUNT","RATE_DAILY","PERIOD"]
[387815429,1758887448254,-480.0,0.00039178,30]
[387815430,1758887448265,-153.588831,0.00039178,120]
[387815431,1758887448275,-152.55254,0.00039178,120]
[387815432,1758887448286,-152.55254,0.00039178,120]
[387815433,1758887448296,-151.0,0.00039178,120]
[387815434,1758887448305,-152.55254,0.00039178,120]
[387815435,1758887448316,-151.0,0.00039178,120]
[387815436,1758887448326,-152.55254,0.00039178,120]
[387815437,1758887448336,-505.29,0.00039178,30]
[387815438,1758887448346,-480.0,0.00039178,30]
[387815439,1758887448357,-1515.82,0.00039178,30]
[387815440,1758887448367,-151.0,0.00039178,120]
[387815441,1758887448376,-2225.34,0.00039178,30]
[387815442,1758887448386,-480.0,0.00039178,30]
[387815443,1758887448396,-897.36,0.00039178,30]
[387815444,1758887448406,-480.0,0.00039178,30]
[387815445,1758887448415,-480.0,0.00039178,30]
[387815446,1758887448425,-476.03632181,0.00039178,30]
[387815447,1758887448434,-1178.01,0.00039178,30]
[387815448,1758887448443,-480.0,0.00039178,30]
[387815449,1758887448453,-2461.48,0.00039178,30]
[387815450,1758887448463,-151.0,0.00039178,120]
[387815451,1758887448472,-480.0,0.00039178,30]
[387815452,1758887448481,-151.0,0.00039178,120]
[387815453,1758887448490,-156.755429,0.00039178,30]
[387815454,1758887448499,-721.08,0.00039178,30]
[387815455,1758887448509,-156.755429,0.00039178,30]
[387815456,1758887448518,-156.755429,0.00039178,30]
[387815457,1758887448528,-480.0,0.00039178,30]
[387815458,1758887448537,-151.0,0.00039178,120]
[387815459,1758887448547,-156.755429,0.00039178,30]
[387815460,1758887448557,-151.0,0.00039178,120]
[387815461,1758887448567,-300.0,0.00039221,5]
[387815462,1758887448576,-500.0,0.00039289,120]
[387815463,1758887448586,-1500.0,0.00039368,5]
[387815464,1758887448596,-480.0,0.00039451,30]
[387815465,1758887448607,-480.0,0.00039451,30]
[387815466,1758887448616,-484.26779461,0.00039451,30]
[387815467,1758887448627,-480.0,0.00039451,30]
[387815468,1758887448636,-151.0,0.00039451,120]
[387815469,1758887448647,-480.0,0.00039452,30]
[387815470,1758887448656,-480.0,0.00039452,30]
[387815471,1758887448666,-480.0,0.00039452,30]
[387815472,1758887448676,-480.0,0.00039452,30]
[387815473,1758887448685,-480.0,0.00039452,30]
[387815474,1758887448694,-480.0,0.00039452,30]
[387815475,1758887448703,-480.0,0.00039452,30]
[387815476,1758887448713,-480.0,0.00039452,30]
[387815477,1758887448723,-480.0,0.00039452,30]
[387815478,1758887448732,-480.0,0.00039452,30]
[387815479,1758887448742,-269.401123,0.00039452,120]
[387815480,1758887448752,-540.14,0.00039452,30]
[387815481,1758887448761,-480.0,0.00039452,30]
[387815482,1758887448771,-151.0,0.00039452,120]
[387815483,1758887448780,-151.0,0.00039452,120]
[387815484,1758887448789,-151.0,0.00039452,120]
[387815485,1758887448798,-480.0,0.00039452,30]
[387815486,1758887448808,-151.0,0.00039452,120]
[387815487,1758887448817,-576.07636615,0.00039452,30]
[387815488,1758887448826,-480.0,0.00039452,30]
[387815489,1758887448835,-480.0,0.00039452,30]
[387815490,1758887448846,-650.91,0.00039452,30]
[387815491,1758887448924,-524.40061604,0.00039452,30]
[387815492,1758887448943,-480.0,0.00039452,30]
[387815493,1758887448953,-480.0,0.00039452,30]
[387815494,1758887448963,-480.0,0.00039452,30]
[387815495,1758887448972,-480.0,0.00039452,30]
[387815496,1758887448982,-485.67294734,0.00039452,30]
[387815497,1758887448992,-480.0,0.00039452,30]
[387815498,1758887449002,-480.0,0.00039452,30]
[387815499,1758887449012,-480.0,0.00039452,30]
[387815500,1758887449022,-480.0,0.00039452,30]
[387815501,1758887449032,-200.0,0.00039452,30]
[387815502,1758887449042,-480.0,0.00039452,30]
[387815503,1758887449052,-480.0,0.00039452,30]
[387815504,1758887449062,-485.16559837,0.00039452,30]
[387815505,1758887449072,-564.36,0.00039452,30]
[387815506,1758887449081,-302.36192939,0.00039452,30]
[387815507,1758887449092,-480.0,0.00039452,30]
[387815508,1758887449102,-915.51,0.00039452,30]
[387815509,1758887449112,-480.0,0.00039452,30]
[387815510,1758887449122,-480.0,0.00039452,30]
[387815511,1758887449131,-480.0,0.00039452,30]
[387815512,1758887449141,-490.45992286,0.00039452,30]
[387815513,1758887449152,-664.71,0.00039452,30]
[387815514,1758887449162,-2018.41,0.00039452,30]
[387815515,1758887449172,-522.48,0.00039452,30]
[387815516,1758887449183,-986.89,0.00039452,30]
[387815517,1758887449192,-480.0,0.00039452,30]
[387815518,1758887449204,-480.0,0.00039452,30]
[387815519,1758887449213,-480.0,0.00039452,30]
[387815520,1758887449223,-480.0,0.00039452,30]
[387815521,1758887449233,-480.0,0.00039452,30]
[387815522,1758887449242,-480.0,0.00039452,30]
[387815523,1758887449252,-643.58,0.00039452,30]
[387815524,1758887449261,-484.92,0.00039452,30]
[387815525,1758887449270,-480.0,0.00039452,30]
[387815526,1758887449279,-480.0,0.00039452,30]
[387815527,1758887449290,-480.0,0.00039452,30]
[387815528,1758887449299,-480.0,0.00039452,30]
[387815529,1758887449309,-480.0,0.00039452,30]
[387815530,1758887449319,-480.0,0.00039452,30]
[387815531,1758887449328,-480.0,0.00039452,30]
[387815532,1758887449338,-480.0,0.00039452,30]
[387815533,1758887449347,-480.0,0.00039452,30]
[387815534,1758887449355,-480.0,0.00039452,30]
[387815535,1758887449365,-484.56,0.00039452,30]
[387815536,1758887449374,-859.92,0.00039452,3]
[387815537,1758887449383,-480.0,0.00039452,30]
[387815538,1758887449392,-865.92,0.00039452,30]
[387815539,1758887449402,-591.57,0.00039452,30]
[387815540,1758887449411,-480.0,0.00039452,30]
[387815541,1758887449420,-1052.9,0.00039452,30]
[387815542,1758887449430,-3154.93,0.00039452,30]
[387815543,1758887449440,-820.67,0.00039452,30]
[387815544,1758887449449,-480.0,0.00039452,30]
[387815545,1758887449458,-480.0,0.00039452,30]
[387815546,1758887449468,-480.0,0.00039452,21]
[387815547,1758887449477,-643.85,0.00039452,30]
[387815548,1758887449487,-757.66,0.00039452,30]
[387815549,1758887449496,-480.0,0.00039452,30]
[387815550,1758887449506,-923.27,0.00039452,30]
[387815551,1758887449516,-743.16,0.00039452,30]
[387815552,1758887449526,-480.0,0.00039452,30]
[387815553,1758887449535,-480.0,0.00039452,30]
[387815554,1758887449544,-480.0,0.00039452,30]
[387815555,1758887449553,-505.29,0.00039452,30]
[387815556,1758887449563,-480.0,0.00039452,30]
[387815557,1758887449572,-1515.82,0.00039452,30]
[387815558,1758887449582,-2225.34,0.00039452,30]
[387815559,1758887449591,-897.36,0.00039452,30]
[387815560,1758887449600,-480.0,0.00039452,30]
[387815561,1758887449610,-1178.01,0.00039452,30]
[387815562,1758887449619,-480.0,0.00039452,30]
[387815563,1758887449629,-2461.48,0.00039452,30]
[387815564,1758887449640,-337.42604207,0.00039452,30]
[387815565,1758887449650,-721.08,0.00039452,30]
[387815566,1758887449659,-480.0,0.00039452,30]
[387815567,1758887449669,-500.0,0.00039468,5]
[387815568,1758887449678,-1500.0,0.00039468,5]
[387815569,1758887449687,-1000.0,0.00039468,5]
[387815570,1758887449696,-1000.0,0.00039468,5]
[387815571,1758887449705,-1500.0,0.00039468,5]
[387815572,1758887449715,-151.0,0.000396,10]
[387815573,1758887449725,-528.08,0.00039606,3]
[387815574,1758887449734,-480.0,0.00039725,30]
[387815575,1758887449744,-480.0,0.00039725,30]
[387815576,1758887449754,-480.0,0.00039725,30]
[387815577,1758887449764,-480.0,0.00039726,30]
[387815578,1758887449773,-480.0,0.00039726,30]
[387815579,1758887449783,-480.0,0.00039726,30]
[387815580,1758887449792,-480.0,0.00039726,30]
[387815581,1758887449802,-480.0,0.00039726,30]
[387815582,1758887449811,-480.0,0.00039726,30]
[387815583,1758887449821,-480.0,0.00039726,30]
[387815584,1758887449831,-480.0,0.00039726,30]
[387815585,1758887449841,-540.14,0.00039726,30]
[387815586,1758887449851,-480.0,0.00039726,30]
[387815587,1758887449861,-650.91,0.00039726,30]
[387815588,1758887449871,-480.0,0.00039726,30]
[387815589,1758887449880,-480.0,0.00039726,30]
[387815590,1758887449890,-329.69494184,0.00039726,30]
[387815591,1758887449900,-480.0,0.00039726,30]
[387815592,1758887449909,-480.0,0.00039726,30]
[387815593,1758887449919,-480.0,0.00039726,30]
[387815594,1758887449928,-530.90617903,0.00039726,30]
[387815595,1758887449938,-200.0,0.00039726,30]
[387815596,1758887449948,-182.58166359,0.00039726,30]
[387815597,1758887449957,-564.36,0.00039726,30]
[387815598,1758887449967,-480.0,0.00039726,30]
[387815599,1758887449978,-915.51,0.00039726,30]
[387815600,1758887449987,-480.0,0.00039726,30]
[387815601,1758887449998,-480.0,0.00039726,30]
[387815603,1758887450012,-664.71,0.00039726,30]
[387815605,1758887450022,-2018.41,0.00039726,30]
[387815606,1758887450031,-522.48,0.00039726,30]
[387815607,1758887450040,-986.89,0.00039726,30]
[387815608,1758887450049,-480.0,0.00039726,30]
[387815609,1758887450059,-480.0,0.00039726,30]
[387815610,1758887450068,-480.0,0.00039726,30]
[387815611,1758887450077,-480.0,0.00039726,30]
[387815612,1758887450087,-643.58,0.00039726,30]
[387815613,1758887450096,-484.92,0.00039726,30]
[387815614,1758887450106,-480.0,0.00039726,30]
[387815615,1758887450115,-480.0,0.00039726,30]
[387815616,1758887450124,-480.0,0.00039726,30]
[387815617,1758887450133,-480.0,0.00039726,30]
[387815618,1758887450143,-480.0,0.00039726,30]
[387815619,1758887450152,-480.0,0.00039726,30]
[387815620,1758887450161,-480.0,0.00039726,30]
[387815621,1758887450170,-484.56,0.00039726,30]
[387815622,1758887450179,-859.92,0.00039726,3]
[387815623,1758887450188,-480.0,0.00039726,30]
[387815624,1758887450202,-865.92,0.00039726,30]
[387815625,1758887450211,-591.57,0.00039726,30]
[387815626,1758887450220,-480.0,0.00039726,30]
[387815627,1758887450229,-1052.9,0.00039726,30]
[387815628,1758887450238,-3154.93,0.00039726,30]
[387815629,1758887450247,-820.67,0.00039726,30]
[387815630,1758887450256,-480.0,0.00039726,30]
[387815631,1758887450265,-480.0,0.00039726,21]
[387815632,1758887450274,-643.85,0.00039726,30]
[387815633,1758887450284,-757.66,0.00039726,30]
[387815634,1758887450293,-480.0,0.00039726,30]
[387815635,1758887450303,-923.27,0.00039726,30]
[387815636,1758887450313,-743.16,0.00039726,30]
[387815637,1758887450323,-480.0,0.00039726,30]
[387815638,1758887450332,-480.0,0.00039726,30]
[387815639,1758887450342,-480.0,0.00039726,30]
[387815640,1758887450352,-505.29,0.00039726,30]
[387815641,1758887450361,-480.0,0.00039726,30]
[387815642,1758887450371,-1515.82,0.00039726,30]
[387815643,1758887450380,-2225.34,0.00039726,30]
[387815644,1758887450458,-897.36,0.00039726,30]
[387815645,1758887450468,-480.0,0.00039726,30]
[387815646,1758887450478,-1178.01,0.00039726,30]
[387815647,1758887450488,-480.0,0.00039726,30]
[387815648,1758887450497,-2461.48,0.00039726,30]
[387815649,1758887450507,-721.08,0.00039726,30]
[387815650,1758887450516,-480.0,0.00039726,30]
[387815651,1758887450526,-150.81962974,0.00039768,5]
[387815652,1758887450536,-151.0,0.000398,19]
[387815653,1758887450545,-151.0,0.000398,12]
[387815654,1758887450555,-182.5155167,0.00039824,120]
[387815655,1758887450567,-2000.0,0.00039916,5]
[387815656,1758887450577,-1000.0,0.00039973,5]
[387815657,1758887450587,-219.1,0.00039988,30]
[387815658,1758887450597,-480.0,0.00039999,30]
[387815659,1758887450610,-480.0,0.00039999,30]
[387815660,1758887450621,-480.0,0.00039999,30]
[387815661,1758887450639,-480.0,0.0004,30]
[387815662,1758887450649,-480.0,0.0004,30]
[387815663,1758887450659,-480.0,0.0004,30]
[387815664,1758887450668,-480.0,0.0004,30]
[387815665,1758887450677,-158.119186,0.0004,120]
[387815666,1758887450687,-447.9481682,0.0004,30]
[387815667,1758887450696,-480.0,0.0004,30]
[387815668,1758887450705,-480.0,0.0004,30]
[387815669,1758887450715,-480.0,0.0004,30]
[387815670,1758887450724,-540.14,0.0004,30]
[387815671,1758887450734,-480.0,0.0004,30]
[387815672,1758887450743,-650.91,0.0004,30]
[387815673,1758887450752,-480.0,0.0004,30]
[387815674,1758887450761,-480.0,0.0004,30]
[387815675,1758887450772,-480.0,0.0004,30]
[387815676,1758887450782,-480.0,0.0004,30]
[387815677,1758887450791,-480.0,0.0004,30]
[387815678,1758887450801,-564.36,0.0004,30]
[387815679,1758887450812,-555.043748,0.0004,30]
[387815680,1758887450822,-915.51,0.0004,30]
[387815681,1758887450832,-480.0,0.0004,30]
[387815682,1758887450841,-664.71,0.0004,30]
[387815683,1758887450850,-2018.41,0.0004,30]
[387815684,1758887450859,-522.48,0.0004,30]
[387815685,1758887450869,-986.89,0.0004,30]
[387815686,1758887450878,-480.0,0.0004,30]
[387815687,1758887450887,-480.0,0.0004,30]
[387815688,1758887450896,-480.0,0.0004,30]
[387815689,1758887450906,-494.74782543,0.0004,30]
[387815690,1758887450915,-643.58,0.0004,30]
[387815691,1758887450923,-484.92,0.0004,30]
[387815692,1758887450933,-480.0,0.0004,30]
[387815693,1758887450942,-480.0,0.0004,30]
[387815694,1758887450952,-480.0,0.0004,30]
[387815695,1758887450961,-480.0,0.0004,30]
[387815696,1758887450971,-480.0,0.0004,30]
[387815697,1758887450981,-480.0,0.0004,30]
[387815698,1758887450990,-480.0,0.0004,30]
[387815699,1758887450999,-484.56,0.0004,30]
[387815700,1758887451009,-859.92,0.0004,3]
[387815701,1758887451019,-480.0,0.0004,30]
[387815702,1758887451029,-865.92,0.0004,30]
[387815703,1758887451038,-591.57,0.0004,30]
[387815704,1758887451048,-480.0,0.0004,30]
[387815705,1758887451058,-1052.9,0.0004,30]
[387815706,1758887451069,-3154.93,0.0004,30]
[387815707,1758887451079,-820.67,0.0004,30]
[387815708,1758887451089,-480.0,0.0004,30]
[387815709,1758887451098,-480.0,0.0004,21]
[387815710,1758887451108,-643.85,0.0004,30]
[387815711,1758887451118,-757.66,0.0004,30]
[387815712,1758887451127,-480.0,0.0004,30]
[387815713,1758887451136,-923.27,0.0004,30]
[387815714,1758887451147,-743.16,0.0004,30]
[387815715,1758887451157,-480.0,0.0004,30]
[387815716,1758887451166,-480.0,0.0004,30]
[387815717,1758887451176,-480.0,0.0004,30]
[387815718,1758887451186,-505.29,0.0004,30]
[387815719,1758887451200,-480.0,0.0004,30]
[387815720,1758887451209,-1515.82,0.0004,30]
[387815721,1758887451218,-2225.34,0.0004,30]
[387815722,1758887451228,-897.36,0.0004,30]
[387815723,1758887451238,-480.0,0.0004,30]
[387815724,1758887451247,-1178.01,0.0004,30]
[387815725,1758887451258,-480.0,0.0004,30]
[387815726,1758887451268,-2461.48,0.0004,30]
[387815727,1758887451278,-721.08,0.0004,30]
[387815728,1758887451287,-500.0,0.00040016,5]
[387815729,1758887451297,-1500.0,0.00040016,5]
[387815730,1758887451307,-500.0,0.0004011,120]
[387815731,1758887451317,-150.0,0.0004015,2]
[387815732,1758887451327,-150.0,0.0004015,2]
[387815733,1758887451336,-150.0,0.0004015,2]
[387815734,1758887451346,-219.1,0.00040259,30]
[387815735,1758887451356,-480.0,0.00040273,30]
[387815736,1758887451365,-480.0,0.00040273,30]
[387815737,1758887451374,-480.0,0.00040273,30]
[387815738,1758887451384,-480.0,0.00040273,30]
[387815739,1758887451393,-480.0,0.00040273,30]
[387815740,1758887451403,-480.0,0.00040273,30]
[387815741,1758887451412,-480.0,0.00040273,30]
[387815742,1758887451421,-546.62874828,0.00040273,30]
[387815743,1758887451430,-480.0,0.00040273,30]
[387815744,1758887451439,-211.58163201,0.00040273,30]
[387815745,1758887451449,-540.14,0.00040273,30]
[387815746,1758887451459,-480.0,0.00040273,30]
[387815747,1758887451469,-650.91,0.00040273,30]
[387815748,1758887451480,-184.38949509,0.00040273,30]
[387815749,1758887451490,-480.0,0.00040273,30]
[387815750,1758887451500,-480.0,0.00040273,30]
[387815751,1758887451509,-480.0,0.00040273,30]
[387815752,1758887451518,-529.23537813,0.00040273,30]
[387815753,1758887451527,-564.36,0.00040273,30]
[387815754,1758887451536,-915.51,0.00040273,30]
[387815755,1758887451545,-480.0,0.00040273,30]
[387815756,1758887451554,-664.71,0.00040273,30]
[387815757,1758887451564,-2018.41,0.00040273,30]
[387815758,1758887451573,-522.48,0.00040273,30]
[387815759,1758887451583,-986.89,0.00040273,30]
[387815760,1758887451592,-480.0,0.00040273,30]
[387815761,1758887451601,-480.0,0.00040273,30]
[387815762,1758887451610,-480.0,0.00040273,30]
[387815763,1758887451620,-643.58,0.00040273,30]
[387815764,1758887451629,-484.92,0.00040273,30]
[387815765,1758887451637,-480.0,0.00040273,30]
[387815766,1758887451646,-480.0,0.00040273,30]
[387815767,1758887451655,-480.0,0.00040273,30]
[387815768,1758887451663,-480.0,0.00040273,30]
[387815769,1758887451673,-480.0,0.00040273,30]
[387815770,1758887451682,-480.0,0.00040273,30]
[387815771,1758887451690,-480.0,0.00040273,30]
[387815772,1758887451699,-484.56,0.00040273,30]
[387815773,1758887451708,-859.92,0.00040273,3]
[387815774,1758887451717,-480.0,0.00040273,30]
[387815775,1758887451726,-865.92,0.00040273,30]
[387815776,1758887451736,-591.57,0.00040273,30]
[387815777,1758887451744,-480.0,0.00040273,30]
[387815778,1758887451753,-1052.9,0.00040273,30]
[387815779,1758887451762,-3154.93,0.00040273,30]
[387815780,1758887451771,-820.67,0.00040273,30]
[387815781,1758887451780,-480.0,0.00040273,30]
[387815782,1758887451847,-480.0,0.00040273,21]
[387815783,1758887451863,-643.85,0.00040273,30]
[387815784,1758887451872,-757.66,0.00040273,30]
[387815785,1758887451881,-480.0,0.00040273,30]
[387815786,1758887451890,-923.27,0.00040273,30]
[387815787,1758887451899,-743.16,0.00040273,30]
[387815788,1758887451907,-480.0,0.00040273,30]
[387815789,1758887451916,-590.30527068,0.00040273,30]
[387815790,1758887451926,-480.0,0.00040273,30]
[387815791,1758887451935,-505.29,0.00040273,30]
[387815792,1758887451944,-480.0,0.00040273,30]
[387815793,1758887451953,-1515.82,0.00040273,30]
[387815794,1758887451962,-2225.34,0.00040273,30]
[387815795,1758887451971,-897.36,0.00040273,30]
[387815796,1758887451980,-480.0,0.00040273,30]
[387815797,1758887451990,-1178.01,0.00040273,30]
[387815798,1758887451999,-480.0,0.00040273,30]
[387815799,1758887452008,-2461.48,0.00040273,30]
[387815800,1758887452017,-721.08,0.00040273,30]
[387815801,1758887452027,-195.623787,0.000404,120]
[387815802,1758887452035,-151.0,0.000404,120]
[387815803,1758887452045,-2500.0,0.00040464,5]
[387815804,1758887452054,-219.1,0.0004053,30]
[387815805,1758887452064,-480.0,0.00040547,30]
[387815806,1758887452073,-480.0,0.00040547,30]
[387815807,1758887452082,-480.0,0.00040547,30]
[387815808,1758887452092,-485.46900699,0.00040547,30]
[387815809,1758887452101,-480.0,0.00040547,30]
[387815810,1758887452110,-480.0,0.00040547,30]
[387815811,1758887452119,-480.0,0.00040547,30]
[387815812,1758887452128,-480.0,0.00040547,30]
[387815813,1758887452137,-540.14,0.00040547,30]
[387815814,1758887452146,-480.0,0.00040547,30]
[387815815,1758887452155,-650.91,0.00040547,30]
[387815816,1758887452165,-480.0,0.00040547,30]
[387815817,1758887452174,-480.0,0.00040547,30]
[387815818,1758887452183,-480.0,0.00040547,30]
[387815819,1758887452192,-564.36,0.00040547,30]
[387815820,1758887452206,-915.51,0.00040547,30]
[387815821,1758887452215,-480.0,0.00040547,30]
[387815822,1758887452223,-664.71,0.00040547,30]
[387815823,1758887452232,-2018.41,0.00040547,30]
[387815824,1758887452242,-522.48,0.00040547,30]
[387815825,1758887452251,-986.89,0.00040547,30]
[387815826,1758887452259,-480.0,0.00040547,30]
[387815827,1758887452270,-480.0,0.00040547,30]
[387815828,1758887452279,-480.0,0.00040547,30]
[387815829,1758887452287,-643.58,0.00040547,30]
[387815830,1758887452296,-484.92,0.00040547,30]
[387815831,1758887452305,-480.0,0.00040547,30]
[387815832,1758887452315,-480.0,0.00040547,30]
[387815833,1758887452324,-480.0,0.00040547,30]
[387815834,1758887452333,-480.0,0.00040547,30]
[387815835,1758887452342,-480.0,0.00040547,30]
[387815836,1758887452350,-480.0,0.00040547,30]
[387815837,1758887452361,-480.0,0.00040547,30]
[387815838,1758887452370,-484.56,0.00040547,30]
[387815839,1758887452379,-859.92,0.00040547,3]
[387815840,1758887452388,-480.0,0.00040547,30]
[387815841,1758887452397,-865.92,0.00040547,30]
[387815842,1758887452406,-591.57,0.00040547,30]
[387815843,1758887452416,-480.0,0.00040547,30]
[387815844,1758887452425,-1052.9,0.00040547,30]
[387815845,1758887452435,-3154.93,0.00040547,30]
[387815846,1758887452446,-820.67,0.00040547,30]
[387815847,1758887452455,-480.0,0.00040547,30]
[387815848,1758887452465,-480.0,0.00040547,21]
[387815849,1758887452474,-643.85,0.00040547,30]
[387815850,1758887452483,-757.66,0.00040547,30]
[387815851,1758887452492,-480.0,0.00040547,30]
[387815852,1758887452501,-923.27,0.00040547,30]
[387815853,1758887452510,-743.16,0.00040547,30]
[387815854,1758887452520,-480.0,0.00040547,30]
[387815855,1758887452529,-480.0,0.00040547,30]
[387815856,1758887452539,-505.29,0.00040547,30]
[387815857,1758887452548,-480.0,0.00040547,30]
[387815858,1758887452558,-1515.82,0.00040547,30]
[387815859,1758887452569,-2225.34,0.00040547,30]
[387815860,1758887452579,-897.36,0.00040547,30]
[387815861,1758887452589,-480.0,0.00040547,30]
[387815862,1758887452598,-1178.01,0.00040547,30]
[387815863,1758887452608,-480.0,0.00040547,30]
[387815864,1758887452617,-2461.48,0.00040547,30]
[387815865,1758887452626,-156.755429,0.00040547,30]
[387815866,1758887452636,-156.755429,0.00040547,30]
[387815867,1758887452645,-721.08,0.00040547,30]
[387815868,1758887452654,-156.755429,0.00040547,30]
[387815869,1758887452664,-151.0,0.00040547,120]
[387815870,1758887452674,-156.755429,0.00040547,30]
[387815871,1758887452683,-164.74712653,0.00040658,120]
[387815872,1758887452692,-152.788456,0.00040658,30]
[387815873,1758887452701,-152.765292,0.00040658,120]
[387815874,1758887452710,-206.937164,0.00040658,120]
[387815875,1758887452720,-151.987564,0.00040658,120]
[387815876,1758887452730,-151.0,0.00040658,120]
[387815877,1758887452739,-296.754986,0.00040658,120]
[387815878,1758887452750,-151.0,0.00040658,120]
[387815879,1758887452759,-151.0,0.00040658,120]
[387815880,1758887452769,-151.0,0.00040658,120]
[387815881,1758887452778,-219.1,0.00040801,30]
[387815882,1758887452788,-480.0,0.00040821,30]
[387815883,1758887452797,-480.0,0.00040821,30]
[387815884,1758887452806,-480.0,0.00040821,30]
[387815885,1758887452816,-151.0,0.00040821,120]
[387815886,1758887452826,-486.47109927,0.00040821,30]
[387815887,1758887452837,-151.0,0.00040821,14]
[387815888,1758887452847,-480.0,0.00040821,30]
[387815889,1758887452857,-480.0,0.00040821,30]
[387815890,1758887452866,-480.0,0.00040821,30]
[387815891,1758887452875,-540.14,0.00040821,30]
[387815892,1758887452885,-480.0,0.00040821,30]
[387815893,1758887452894,-650.91,0.00040821,30]
[387815894,1758887452904,-480.0,0.00040821,30]
[387815895,1758887452914,-480.0,0.00040821,30]
[387815896,1758887452924,-480.0,0.00040821,30]
[387815897,1758887452933,-564.36,0.00040821,30]
[387815898,1758887452943,-915.51,0.00040821,30]
[387815899,1758887452953,-480.0,0.00040821,30]
[387815900,1758887452962,-664.71,0.00040821,30]
[387815901,1758887452972,-2018.41,0.00040821,30]
[387815902,1758887452983,-522.48,0.00040821,30]
[387815903,1758887452992,-986.89,0.00040821,30]
[387815904,1758887453002,-480.0,0.00040821,30]
[387815905,1758887453012,-480.0,0.00040821,30]
[387815906,1758887453022,-480.0,0.00040821,30]
[387815907,1758887453031,-643.58,0.00040821,30]
[387815908,1758887453041,-484.92,0.00040821,30]
[387815909,1758887453051,-480.0,0.00040821,30]
[387815910,1758887453130,-151.0,0.00040821,120]
[387815911,1758887453140,-158.38868571,0.00040821,30]
[387815912,1758887453149,-480.0,0.00040821,30]
[387815913,1758887453158,-480.0,0.00040821,30]
[387815914,1758887453167,-480.0,0.00040821,30]
[387815915,1758887453177,-480.0,0.00040821,30]
[387815916,1758887453187,-151.0,0.00040821,120]
[387815917,1758887453199,-480.0,0.00040821,30]
[387815918,1758887453210,-484.56,0.00040821,30]
[387815919,1758887453219,-859.92,0.00040821,3]
[387815920,1758887453229,-480.0,0.00040821,30]
[387815921,1758887453238,-865.92,0.00040821,30]
[387815922,1758887453249,-591.57,0.00040821,30]
[387815923,1758887453258,-480.0,0.00040821,30]
[387815924,1758887453268,-1052.9,0.00040821,30]
[387815925,1758887453278,-3154.93,0.00040821,30]
[387815926,1758887453288,-820.67,0.00040821,30]
[387815927,1758887453297,-480.0,0.00040821,30]
[387815928,1758887453307,-480.0,0.00040821,21]
[387815929,1758887453317,-643.85,0.00040821,30]
[387815930,1758887453327,-757.66,0.00040821,30]